Workbook

Sheet Portada
B7: Licitación Pública No. LA-OAX-DID-002-2021
B8: Convocatoria para la Contratación de Instrumentos Derivados
B9: Hoja de Cálculo para la determinación de la Tabla de Amortización del Financiamiento Banobras 1
B11: Instrucciones de uso
B12: 1. Indicar la tasa SWAP
B13: 2. Oprimir el botón Calcular Amortización y esperar hasta que en el indicador se lea: Check
B15: Consideraciones
B16: El adecuado uso de la hoja de cálculo requiere habilitar el uso de Macros
B17: 1. En caso que, después de ingresar la tasa SWAP y oprimir el botón Calcular Amortización, el indicador no muestre Check, se deberá apretar nuevamente el botón.
B18: 2. En caso de existir diferenciales en centavos de la tabla de amortización con respecto al saldo insoluto, la diferencia se compensará en el último pago de capital
B19: En caso de dudas adicionales, favor de contactar al siguiente número: 5512411024

Sheet Perfil de Amortización
A1: Licitación Pública No. LA-OAX-DID-002-2021 para la Contratación de SWAP del Estado de Oaxaca
A2: Hoja de Cálculo para la determinación de la Tabla de Amortización del Financiamiento Banobras 1
B4: Indicador | D4: Monto para Inversión | E4: 40147732.85 | G4: Tasa SWAP | H4: 0.054815 | J4: 353526044.1
B5: =+IF(ROUND(J188,1)=ABS(0),"Check","Oprime Boton ↓") -> Check | D5: Fondo de Reserva | E5: =+(J5/J4)*E4 -> 1066222.1 | G5: Sobretasa | H5: 0.004 | J5: 9388756.34 | K5: FR
D6: Monto de la disposición | E6: =+SUM(E4:E5) -> 41213954.95 | G6: Tasa fija | H6: =+SUM(H4:H5) -> 0.058815 | J6: =+SUM(J4:J5) -> 362914800.5
D9: Periodo | E9: Fecha | F9: Saldo inicial | G9: Amortización | H9: Intereses | I9: Servicio de la deuda | J9: Saldo final
B10: =+PMT(H6*30/360,D188,E6) -> -360595.6542
B11: 976.2992161
A13: =+IF(B5="Check",TRUE,FALSE) -> TRUE
E20: 2021-04-21 | F20: =+E6 -> 41213954.95
D21: 1 | E21: 2021-05-05 | F21: =+F20 -> 41213954.95 | G21: =+I21-H21 -> 267305.3292 | H21: =+ROUND(F21*$H$6*(E21-E20)/360,2) -> 94266.62 | I21: =+ROUND(-$B$10,2)+B11 -> 361571.9492 | J21: =+F21-G21 -> 40946649.62
D22: 2 | E22: 2021-06-07 | F22: =+J21 -> 40946649.62 | G22: =+I22-H22 -> 140813.2092 | H22: 220758.74 | I22: =+I21 -> 361571.9492 | J22: 40805836.41
D23: 3 | E23: 2021-07-05 | F23: 40805836.41 | G23: 174905.6492 | H23: 186666.3 | I23: =+I22 -> 361571.9492 | J23: 40630930.76
D24: 4 | E24: 2021-08-05 | F24: 40630930.76 | G24: 155791.5192 | H24: 205780.43 | I24: 361571.9492 | J24: 40475139.24
D25: 5 | E25: 2021-09-06 | F25: 40475139.24 | G25: 149967.9192 | H25: 211604.03 | I25: 361571.9492 | J25: 40325171.32
D26: 6 | E26: 2021-10-05 | F26: 40325171.32 | G26: 170516.3292 | H26: 191055.62 | I26: 361571.9492 | J26: 40154655
D27: 7 | E27: 2021-11-05 | F27: 40154655 | G27: 158203.6792 | H27: 203368.27 | I27: 361571.9492 | J27: 39996451.32
D28: 8 | E28: 2021-12-06 | F28: 39996451.32 | G28: 159004.9192 | H28: 202567.03 | I28: 361571.9492 | J28: 39837446.4
D29: 9 | E29: 2022-01-05 | F29: 39837446.4 | G29: 166318.6692 | H29: 195253.28 | I29: 361571.9492 | J29: 39671127.73
D30: 10 | E30: 2022-02-08 | F30: 39671127.73 | G30: 141208.7492 | H30: 220363.2 | I30: 361571.9492 | J30: 39529918.98
D31: 11 | E31: 2022-03-07 | F31: 39529918.98 | G31: 187200.5392 | H31: 174371.41 | I31: 361571.9492 | J31: 39342718.44
D32: 12 | E32: 2022-04-05 | F32: 39342718.44 | G32: 175171.0692 | H32: 186400.88 | I32: 361571.9492 | J32: 39167547.37
D33: 13 | E33: 2022-05-05 | F33: 39167547.37 | G33: 169602.0092 | H33: 191969.94 | I33: 361571.9492 | J33: 38997945.36
D34: 14 | E34: 2022-06-06 | F34: 38997945.36 | G34: 157690.6892 | H34: 203881.26 | I34: 361571.9492 | J34: 38840254.67
D35: 15 | E35: 2022-07-05 | F35: 38840254.67 | G35: 177551.6792 | H35: 184020.27 | I35: 361571.9492 | J35: 38662702.99
D36: 16 | E36: 2022-08-05 | F36: 38662702.99 | G36: 165759.8592 | H36: 195812.09 | I36: 361571.9492 | J36: 38496943.13
D37: 17 | E37: 2022-09-05 | F37: 38496943.13 | G37: 166599.3692 | H37: 194972.58 | I37: 361571.9492 | J37: 38330343.76
D38: 18 | E38: 2022-10-05 | F38: 38330343.76 | G38: 173705.3492 | H38: 187866.6 | I38: 361571.9492 | J38: 38156638.41
D39: 19 | E39: 2022-11-07 | F39: 38156638.41 | G39: 155855.1992 | H39: 205716.75 | I39: 361571.9492 | J39: 38000783.22
D40: 20 | E40: 2022-12-05 | F40: 38000783.22 | G40: 187737.3692 | H40: 173834.58 | I40: 361571.9492 | J40: 37813045.85
D41: 21 | E41: 2023-01-05 | F41: 37813045.85 | G41: 170063.0492 | H41: 191508.9 | I41: 361571.9492 | J41: 37642982.8
D42: 22 | E42: 2023-02-07 | F42: 37642982.8 | G42: 158624.5092 | H42: 202947.44 | I42: 361571.9492 | J42: 37484358.29
D43: 23 | E43: 2023-03-06 | F43: 37484358.29 | G43: 196223.7592 | H43: 165348.19 | I43: 361571.9492 | J43: 37288134.53
D44: 24 | E44: 2023-04-05 | F44: 37288134.53 | G44: 178813.4792 | H44: 182758.47 | I44: 361571.9492 | J44: 37109321.05
D45: 25 | E45: 2023-05-05 | F45: 37109321.05 | G45: 179689.8892 | H45: 181882.06 | I45: 361571.9492 | J45: 36929631.16
D46: 26 | E46: 2023-06-05 | F46: 36929631.16 | G46: 174537.2192 | H46: 187034.73 | I46: 361571.9492 | J46: 36755093.94
D47: 27 | E47: 2023-07-05 | F47: 36755093.94 | G47: 181426.0492 | H47: 180145.9 | I47: 361571.9492 | J47: 36573667.89
D48: 28 | E48: 2023-08-07 | F48: 36573667.89 | G48: 164389.5892 | H48: 197182.36 | I48: 361571.9492 | J48: 36409278.3
D49: 29 | E49: 2023-09-05 | F49: 36409278.3 | G49: 189069.3392 | H49: 172502.61 | I49: 361571.9492 | J49: 36220208.96
D50: 30 | E50: 2023-10-05 | F50: 36220208.96 | G50: 184047.6492 | H50: 177524.3 | I50: 361571.9492 | J50: 36036161.31
D51: 31 | E51: 2023-11-06 | F51: 36036161.31 | G51: 173174.8992 | H51: 188397.05 | I51: 361571.9492 | J51: 35862986.41
D52: 32 | E52: 2023-12-05 | F52: 35862986.41 | G52: 191657.5992 | H52: 169914.35 | I52: 361571.9492 | J52: 35671328.82
D53: 33 | E53: 2024-01-05 | F53: 35671328.82 | G53: 180910.0492 | H53: 180661.9 | I53: 361571.9492 | J53: 35490418.77
D54: 34 | E54: 2024-02-06 | F54: 35490418.77 | G54: 176028.0392 | H54: 185543.91 | I54: 361571.9492 | J54: 35314390.73
D55: 35 | E55: 2024-03-05 | F55: 35314390.73 | G55: 200026.2692 | H55: 161545.68 | I55: 361571.9492 | J55: 35114364.46
D56: 36 | E56: 2024-04-05 | F56: 35114364.46 | G56: 183730.8592 | H56: 177841.09 | I56: 361571.9492 | J56: 34930633.6
D57: 37 | E57: 2024-05-06 | F57: 34930633.6 | G57: 184661.3892 | H57: 176910.56 | I57: 361571.9492 | J57: 34745972.21
D58: 38 | E58: 2024-06-05 | F58: 34745972.21 | G58: 191273.2492 | H58: 170298.7 | I58: 361571.9492 | J58: 34554698.96
D59: 39 | E59: 2024-07-05 | F59: 34554698.96 | G59: 192210.7292 | H59: 169361.22 | I59: 361571.9492 | J59: 34362488.23
D60: 40 | E60: 2024-08-05 | F60: 34362488.23 | G60: 187538.8292 | H60: 174033.12 | I60: 361571.9492 | J60: 34174949.4
D61: 41 | E61: 2024-09-05 | F61: 34174949.4 | G61: 188488.6492 | H61: 173083.3 | I61: 361571.9492 | J61: 33986460.75
D62: 42 | E62: 2024-10-07 | F62: 33986460.75 | G62: 183890.7292 | H62: 177681.22 | I62: 361571.9492 | J62: 33802570.02
D63: 43 | E63: 2024-11-05 | F63: 33802570.02 | G63: 201419.5992 | H63: 160152.35 | I63: 361571.9492 | J63: 33601150.42
D64: 44 | E64: 2024-12-05 | F64: 33601150.42 | G64: 196884.3092 | H64: 164687.64 | I64: 361571.9492 | J64: 33404266.11
D65: 45 | E65: 2025-01-06 | F65: 33404266.11 | G65: 186934.4492 | H65: 174637.5 | I65: 361571.9492 | J65: 33217331.67
D66: 46 | E66: 2025-02-05 | F66: 33217331.67 | G66: 198765.4992 | H66: 162806.45 | I66: 361571.9492 | J66: 33018566.17
D67: 47 | E67: 2025-03-05 | F67: 33018566.17 | G67: 210528.5192 | H67: 151043.43 | I67: 361571.9492 | J67: 32808037.65
D68: 48 | E68: 2025-04-07 | F68: 32808037.65 | G68: 184691.5192 | H68: 176880.43 | I68: 361571.9492 | J68: 32623346.13
D69: 49 | E69: 2025-05-05 | F69: 32623346.13 | G69: 212336.4492 | H69: 149235.5 | I69: 361571.9492 | J69: 32411009.68
D70: 50 | E70: 2025-06-05 | F70: 32411009.68 | G70: 197422.3392 | H70: 164149.61 | I70: 361571.9492 | J70: 32213587.34
D71: 51 | E71: 2025-07-07 | F71: 32213587.34 | G71: 193159.3192 | H71: 168412.63 | I71: 361571.9492 | J71: 32020428.02
D72: 52 | E72: 2025-08-05 | F72: 32020428.02 | G72: 209863.1592 | H72: 151708.79 | I72: 361571.9492 | J72: 31810564.86
D73: 53 | E73: 2025-09-05 | F73: 31810564.86 | G73: 200463.3692 | H73: 161108.58 | I73: 361571.9492 | J73: 31610101.49
D74: 54 | E74: 2025-10-06 | F74: 31610101.49 | G74: 201478.6392 | H74: 160093.31 | I74: 361571.9492 | J74: 31408622.85
D75: 55 | E75: 2025-11-05 | F75: 31408622.85 | G75: 207630.4392 | H75: 153941.51 | I75: 361571.9492 | J75: =+F75-G75 -> 31200992.41
D76: 56 | E76: 2025-12-05 | F76: =+J75 -> 31200992.41 | G76: 208648.0892 | H76: 152923.86 | I76: =+I75 -> 361571.9492 | J76: 30992344.32
D77: 57 | E77: 2026-01-05 | F77: 30992344.32 | G77: 204607.3492 | H77: 156964.6 | I77: 361571.9492 | J77: 30787736.98
D78: 58 | E78: 2026-02-05 | F78: 30787736.98 | G78: 205643.6092 | H78: 155928.34 | I78: 361571.9492 | J78: 30582093.37
D79: 59 | E79: 2026-03-05 | F79: 30582093.37 | G79: =+I79-H79 -> 221674.1592 | H79: =+ROUND(F79*$H$6*(E79-E78)/360,2) -> 139897.79 | I79: 361571.9492 | J79: 30360419.21
D80: 60 | E80: 2026-04-06 | F80: 30360419.21 | G80: 202847.6792 | H80: 158724.27 | I80: 361571.9492 | J80: 30157571.53
D81: 61 | E81: 2026-05-05 | F81: 30157571.53 | G81: 218689.1492 | H81: 142882.8 | I81: 361571.9492 | J81: 29938882.38
D82: 62 | E82: 2026-06-05 | F82: 29938882.38 | G82: 209942.7392 | H82: 151629.21 | I82: 361571.9492 | J82: 29728939.64
D83: 63 | E83: 2026-07-06 | F83: 29728939.64 | G83: 211006.0192 | H83: 150565.93 | I83: 361571.9492 | J83: 29517933.62
D84: 64 | E84: 2026-08-05 | F84: 29517933.62 | G84: 216897.1792 | H84: 144674.77 | I84: 361571.9492 | J84: 29301036.44
D85: 65 | E85: 2026-09-07 | F85: 29301036.44 | G85: 203599.0692 | H85: 157972.88 | I85: 361571.9492 | J85: 29097437.37
D86: 66 | E86: 2026-10-05 | F86: 29097437.37 | G86: 228465.7192 | H86: 133106.23 | I86: 361571.9492 | J86: 28868971.65
D87: 67 | E87: 2026-11-05 | F87: 28868971.65 | G87: 215361.4292 | H87: 146210.52 | I87: 361571.9492 | J87: 28653610.22
D88: 68 | E88: 2026-12-07 | F88: 28653610.22 | G88: 211770.8792 | H88: 149801.07 | I88: 361571.9492 | J88: 28441839.34
D89: 69 | E89: 2027-01-05 | F89: 28441839.34 | G89: 226818.0692 | H89: 134753.88 | I89: 361571.9492 | J89: 28215021.27
D90: 70 | E90: 2027-02-05 | F90: 28215021.27 | G90: 218673.4492 | H90: 142898.5 | I90: 361571.9492 | J90: 27996347.83
D91: 71 | E91: 2027-03-05 | F91: 27996347.83 | G91: 233502.6592 | H91: 128069.29 | I91: 361571.9492 | J91: 27762845.17
D92: 72 | E92: 2027-04-05 | F92: 27762845.17 | G92: 220963.5492 | H92: 140608.4 | I92: 361571.9492 | J92: 27541881.62
D93: 73 | E93: 2027-05-05 | F93: 27541881.62 | G93: 226582.2992 | H93: 134989.65 | I93: 361571.9492 | J93: 27315299.32
D94: 74 | E94: 2027-06-07 | F94: 27315299.32 | G94: 214304.9292 | H94: 147267.02 | I94: 361571.9492 | J94: 27100994.39
D95: 75 | E95: 2027-07-05 | F95: 27100994.39 | G95: 237598.4492 | H95: 123973.5 | I95: 361571.9492 | J95: 26863395.94
D96: 76 | E96: 2027-08-05 | F96: 26863395.94 | G96: 225518.9192 | H96: 136053.03 | I96: 361571.9492 | J96: 26637877.02
D97: 77 | E97: 2027-09-06 | F97: 26637877.02 | G97: 222309.1292 | H97: 139262.82 | I97: 361571.9492 | J97: 26415567.89
D98: 78 | E98: 2027-10-05 | F98: 26415567.89 | G98: 236418.2892 | H98: 125153.66 | I98: 361571.9492 | J98: 26179149.6
D99: 79 | E99: 2027-11-05 | F99: 26179149.6 | G99: 228984.3692 | H99: 132587.58 | I99: 361571.9492 | J99: 25950165.23
D100: 80 | E100: 2027-12-06 | F100: 25950165.23 | G100: 230144.0892 | H100: 131427.86 | I100: 361571.9492 | J100: 25720021.14
D101: 81 | E101: 2028-01-05 | F101: 25720021.14 | G101: 235511.6992 | H101: 126060.25 | I101: 361571.9492 | J101: 25484509.44
D102: 82 | E102: 2028-02-08 | F102: 25484509.44 | G102: 220011.8692 | H102: 141560.08 | I102: 361571.9492 | J102: 25264497.57
D103: 83 | E103: 2028-03-06 | F103: 25264497.57 | G103: 250127.0892 | H103: 111444.86 | I103: 361571.9492 | J103: 25014370.49
D104: 84 | E104: 2028-04-05 | F104: 25014370.49 | G104: 238970.2692 | H104: 122601.68 | I104: 361571.9492 | J104: 24775400.22
D105: 85 | E105: 2028-05-05 | F105: 24775400.22 | G105: 240141.5192 | H105: 121430.43 | I105: 361571.9492 | J105: 24535258.7
D106: 86 | E106: 2028-06-05 | F106: 24535258.7 | G106: 237310.0692 | H106: 124261.88 | I106: 361571.9492 | J106: 24297948.63
D107: 87 | E107: 2028-07-05 | F107: 24297948.63 | G107: 242481.6292 | H107: 119090.32 | I107: 361571.9492 | J107: 24055467
D108: 88 | E108: 2028-08-07 | F108: 24055467 | G108: 231879.9092 | H108: 129692.04 | I108: 361571.9492 | J108: 23823587.09
D109: 89 | E109: 2028-09-05 | F109: 23823587.09 | G109: 248698.7692 | H109: 112873.18 | I109: 361571.9492 | J109: 23574888.32
D110: 90 | E110: 2028-10-05 | F110: 23574888.32 | G110: 246025.5292 | H110: 115546.42 | I110: 361571.9492 | J110: 23328862.79
D111: 91 | E111: 2028-11-06 | F111: 23328862.79 | G111: 239608.6592 | H111: 121963.29 | I111: 361571.9492 | J111: 23089254.13
D112: 92 | E112: 2028-12-05 | F112: 23089254.13 | G112: 252177.9492 | H112: 109394 | I112: 361571.9492 | J112: 22837076.18
D113: 93 | E113: 2029-01-05 | F113: 22837076.18 | G113: 245910.7192 | H113: 115661.23 | I113: 361571.9492 | J113: 22591165.46
D114: 94 | E114: 2029-02-06 | F114: 22591165.46 | G114: 243465.3392 | H114: 118106.61 | I114: 361571.9492 | J114: 22347700.12
D115: 95 | E115: 2029-03-05 | F115: 22347700.12 | G115: 262993.4492 | H115: 98578.5 | I115: 361571.9492 | J115: 22084706.67
D116: 96 | E116: 2029-04-05 | F116: 22084706.67 | G116: 249721.1892 | H116: 111850.76 | I116: 361571.9492 | J116: 21834985.49
D117: 97 | E117: 2029-05-07 | F117: 21834985.49 | G117: 247418.6492 | H117: 114153.3 | I117: 361571.9492 | J117: 21587566.84
D118: 98 | E118: 2029-06-05 | F118: 21587566.84 | G118: 259292.7592 | H118: 102279.19 | I118: 361571.9492 | J118: 21328274.08
D119: 99 | E119: 2029-07-05 | F119: 21328274.08 | G119: 257036.7492 | H119: 104535.2 | I119: 361571.9492 | J119: 21071237.33
D120: 100 | E120: 2029-08-06 | F120: 21071237.33 | G120: 251411.5192 | H120: 110160.43 | I120: 361571.9492 | J120: 20819825.81
D121: 101 | E121: 2029-09-05 | F121: 20819825.81 | G121: 259528.7792 | H121: 102043.17 | I121: 361571.9492 | J121: 20560297.03
D122: 102 | E122: 2029-10-05 | F122: 20560297.03 | G122: 260800.7892 | H122: 100771.16 | I122: 361571.9492 | J122: 20299496.24
D123: 103 | E123: 2029-11-05 | F123: 20299496.24 | G123: 258762.6092 | H123: 102809.34 | I123: 361571.9492 | J123: 20040733.63
D124: 104 | E124: 2029-12-05 | F124: 20040733.63 | G124: 263347.2992 | H124: 98224.65 | I124: 361571.9492 | J124: 19777386.33
D125: 105 | E125: 2030-01-07 | F125: 19777386.33 | G125: 254944.6392 | H125: 106627.31 | I125: 361571.9492 | J125: 19522441.69
D126: 106 | E126: 2030-02-05 | F126: 19522441.69 | G126: 269077.0592 | H126: 92494.89 | I126: 361571.9492 | J126: 19253364.63
D127: 107 | E127: 2030-03-05 | F127: 19253364.63 | G127: 273497.4292 | H127: 88074.52 | I127: 361571.9492 | J127: 18979867.2
D128: 108 | E128: 2030-04-05 | F128: 18979867.2 | G128: 265446.0392 | H128: 96125.91 | I128: 361571.9492 | J128: 18714421.17
D129: 109 | E129: 2030-05-06 | F129: 18714421.17 | G129: 266790.4192 | H129: 94781.53 | I129: 361571.9492 | J129: 18447630.75
D130: 110 | E130: 2030-06-05 | F130: 18447630.75 | G130: 271155.4992 | H130: 90416.45 | I130: 361571.9492 | J130: 18176475.25
D131: 111 | E131: 2030-07-05 | F131: 18176475.25 | G131: 272484.4992 | H131: 89087.45 | I131: 361571.9492 | J131: 17903990.75
D132: 112 | E132: 2030-08-05 | F132: 17903990.75 | G132: 270894.9492 | H132: 90677 | I132: 361571.9492 | J132: 17633095.8
D133: 113 | E133: 2030-09-05 | F133: 17633095.8 | G133: 272266.9292 | H133: 89305.02 | I133: 361571.9492 | J133: 17360828.87
D134: 114 | E134: 2030-10-07 | F134: 17360828.87 | G134: 270809.5392 | H134: 90762.41 | I134: 361571.9492 | J134: 17090019.33
D135: 115 | E135: 2030-11-05 | F135: 17090019.33 | G135: 280601.5692 | H135: 80970.38 | I135: 361571.9492 | J135: 16809417.76
D136: 116 | E136: 2030-12-05 | F136: 16809417.76 | G136: 279184.7892 | H136: 82387.16 | I136: 361571.9492 | J136: 16530232.97
D137: 117 | E137: 2031-01-06 | F137: 16530232.97 | G137: 275151.8892 | H137: 86420.06 | I137: 361571.9492 | J137: 16255081.08
D138: 118 | E138: 2031-02-05 | F138: 16255081.08 | G138: 281901.7292 | H138: 79670.22 | I138: 361571.9492 | J138: 15973179.35
D139: 119 | E139: 2031-03-05 | F139: 15973179.35 | G139: 288502.6392 | H139: 73069.31 | I139: 361571.9492 | J139: =+F139-G139 -> 15684676.71
D140: 120 | E140: 2031-04-07 | F140: =+J139 -> 15684676.71 | G140: 277009.9792 | H140: 84561.97 | I140: =+I139 -> 361571.9492 | J140: 15407666.73
D141: 121 | E141: 2031-05-05 | F141: 15407666.73 | G141: 291089.5792 | H141: 70482.37 | I141: 361571.9492 | J141: 15116577.16
D142: 122 | E142: 2031-06-05 | F142: 15116577.16 | G142: 285012.1592 | H142: 76559.79 | I142: 361571.9492 | J142: 14831565
D143: 123 | E143: 2031-07-07 | F143: 14831565 | G143: =+I143-H143 -> 284032.5292 | H143: =+ROUND(F143*$H$6*(E143-E142)/360,2) -> 77539.42 | I143: 361571.9492 | J143: 14547532.47
D144: 124 | E144: 2031-08-05 | F144: 14547532.47 | G144: 292647.5592 | H144: 68924.39 | I144: 361571.9492 | J144: 14254884.91
D145: 125 | E145: 2031-09-05 | F145: 14254884.91 | G145: 289376.2992 | H145: 72195.65 | I145: 361571.9492 | J145: 13965508.61
D146: 126 | E146: 2031-10-06 | F146: 13965508.61 | G146: 290841.8892 | H146: 70730.06 | I146: 361571.9492 | J146: 13674666.72
D147: 127 | E147: 2031-11-05 | F147: 13674666.72 | G147: 294548.9892 | H147: 67022.96 | I147: 361571.9492 | J147: 13380117.73
D148: 128 | E148: 2031-12-05 | F148: 13380117.73 | G148: 295992.6492 | H148: 65579.3 | I148: 361571.9492 | J148: 13084125.08
D149: 129 | E149: 2032-01-06 | F149: 13084125.08 | G149: 293168.1392 | H149: 68403.81 | I149: 361571.9492 | J149: 12790956.94
D150: 130 | E150: 2032-02-05 | F150: 12790956.94 | G150: 298880.2692 | H150: 62691.68 | I150: 361571.9492 | J150: 12492076.67
D151: 131 | E151: 2032-03-05 | F151: 12492076.67 | G151: 302386.0492 | H151: 59185.9 | I151: 361571.9492 | J151: 12189690.62
D152: 132 | E152: 2032-04-05 | F152: 12189690.62 | G152: 299835.7392 | H152: 61736.21 | I152: 361571.9492 | J152: 11889854.88
D153: 133 | E153: 2032-05-05 | F153: 11889854.88 | G153: 303296.7992 | H153: 58275.15 | I153: 361571.9492 | J153: 11586558.08
D154: 134 | E154: 2032-06-07 | F154: 11586558.08 | G154: 299104.4692 | H154: 62467.48 | I154: 361571.9492 | J154: 11287453.62
D155: 135 | E155: 2032-07-05 | F155: 11287453.62 | G155: 309937.4892 | H155: 51634.46 | I155: 361571.9492 | J155: 10977516.13
D156: 136 | E156: 2032-08-05 | F156: 10977516.13 | G156: 305974.9492 | H156: 55597 | I156: 361571.9492 | J156: 10671541.18
D157: 137 | E157: 2032-09-06 | F157: 10671541.18 | G157: 305781.1292 | H157: 55790.82 | I157: 361571.9492 | J157: 10365760.05
D158: 138 | E158: 2032-10-05 | F158: 10365760.05 | G158: 312460.2692 | H158: 49111.68 | I158: 361571.9492 | J158: 10053299.78
D159: 139 | E159: 2032-11-05 | F159: 10053299.78 | G159: 310655.7592 | H159: 50916.19 | I159: 361571.9492 | J159: 9742644.019
D160: 140 | E160: 2032-12-06 | F160: 9742644.019 | G160: 312229.1092 | H160: 49342.84 | I160: 361571.9492 | J160: 9430414.91
D161: 141 | E161: 2033-01-05 | F161: 9430414.91 | G161: 315351.1292 | H161: 46220.82 | I161: 361571.9492 | J161: 9115063.781
D162: 142 | E162: 2033-02-08 | F162: 9115063.781 | G162: 310940.0492 | H162: 50631.9 | I162: 361571.9492 | J162: 8804123.732
D163: 143 | E163: 2033-03-07 | F163: 8804123.732 | G163: 322735.8592 | H163: 38836.09 | I163: 361571.9492 | J163: 8481387.873
D164: 144 | E164: 2033-04-05 | F164: 8481387.873 | G164: 321388.1892 | H164: 40183.76 | I164: 361571.9492 | J164: 8159999.683
D165: 145 | E165: 2033-05-05 | F165: 8159999.683 | G165: 321577.7492 | H165: 39994.2 | I165: 361571.9492 | J165: 7838421.934
D166: 146 | E166: 2033-06-06 | F166: 7838421.934 | G166: 320592.6792 | H166: 40979.27 | I166: 361571.9492 | J166: 7517829.255
D167: 147 | E167: 2033-07-05 | F167: 7517829.255 | G167: 325953.4092 | H167: 35618.54 | I167: 361571.9492 | J167: 7191875.846
D168: 148 | E168: 2033-08-05 | F168: 7191875.846 | G168: 325147.7992 | H168: 36424.15 | I168: 361571.9492 | J168: 6866728.046
D169: 149 | E169: 2033-09-05 | F169: 6866728.046 | G169: 326794.5492 | H169: 34777.4 | I169: 361571.9492 | J169: 6539933.497
D170: 150 | E170: 2033-10-05 | F170: 6539933.497 | G170: 329518.0992 | H170: 32053.85 | I170: 361571.9492 | J170: 6210415.398
D171: 151 | E171: 2033-11-07 | F171: 6210415.398 | G171: 328089.2692 | H171: 33482.68 | I171: 361571.9492 | J171: 5882326.129
D172: 152 | E172: 2033-12-05 | F172: 5882326.129 | G172: 334663.2492 | H172: 26908.7 | I172: 361571.9492 | J172: 5547662.88
D173: 153 | E173: 2034-01-05 | F173: 5547662.88 | G173: 333475.1192 | H173: 28096.83 | I173: 361571.9492 | J173: 5214187.76
D174: 154 | E174: 2034-02-07 | F174: 5214187.76 | G174: 333460.3092 | H174: 28111.64 | I174: 361571.9492 | J174: 4880727.451
D175: 155 | E175: 2034-03-06 | F175: 4880727.451 | G175: 340042.4492 | H175: 21529.5 | I175: 361571.9492 | J175: 4540685.002
D176: 156 | E176: 2034-04-05 | F176: 4540685.002 | G176: 339316.9192 | H176: 22255.03 | I176: 361571.9492 | J176: 4201368.083
D177: 157 | E177: 2034-05-05 | F177: 4201368.083 | G177: 340979.9892 | H177: 20591.96 | I177: 361571.9492 | J177: 3860388.094
D178: 158 | E178: 2034-06-05 | F178: 3860388.094 | G178: 342020.5292 | H178: 19551.42 | I178: 361571.9492 | J178: 3518367.564
D179: 159 | E179: 2034-07-05 | F179: 3518367.564 | G179: 344327.5492 | H179: 17244.4 | I179: 361571.9492 | J179: 3174040.015
D180: 160 | E180: 2034-08-07 | F180: 3174040.015 | G180: 344459.5092 | H180: 17112.44 | I180: 361571.9492 | J180: 2829580.506
D181: 161 | E181: 2034-09-05 | F181: 2829580.506 | G181: 348165.7492 | H181: 13406.2 | I181: 361571.9492 | J181: 2481414.757
D182: 162 | E182: 2034-10-05 | F182: 2481414.757 | G182: 349409.9192 | H182: 12162.03 | I182: 361571.9492 | J182: 2132004.837
D183: 163 | E183: 2034-11-06 | F183: 2132004.837 | G183: 350425.8292 | H183: 11146.12 | I183: 361571.9492 | J183: 1781579.008
D184: 164 | E184: 2034-12-05 | F184: 1781579.008 | G184: 353131.0492 | H184: 8440.9 | I184: 361571.9492 | J184: 1428447.959
D185: 165 | E185: 2035-01-05 | F185: 1428447.959 | G185: 354337.3992 | H185: 7234.55 | I185: 361571.9492 | J185: 1074110.56
D186: 166 | E186: 2035-02-06 | F186: 1074110.56 | G186: 355956.4992 | H186: 5615.45 | I186: 361571.9492 | J186: 718154.0606
D187: 167 | E187: 2035-03-05 | F187: 718154.0606 | G187: 358404.0792 | H187: 3167.87 | I187: 361571.9492 | J187: 359749.9814
D188: 168 | E188: 2035-04-05 | F188: 359749.9814 | G188: 359749.9492 | H188: 1822 | I188: 361571.9492 | J188: =+ROUND(F188-G188,1) -> 0
